fUST/lending_fUST_20260107
["ID","MTS","AMOUNT","RATE_DAILY","PERIOD"]
[400617191,1767747041524,-3510.39,0.00013698,2]
[400617192,1767747041533,-3510.39,0.00013698,2]
[400617194,1767747041543,-3510.39,0.00013698,2]
[400617196,1767747041553,-3510.39,0.00013698,2]
[400617198,1767747041562,-3510.39,0.00013698,2]
[400617200,1767747041571,-3510.39,0.00013698,2]
[400617215,1767747041693,-3510.39,0.00013698,2]
[400617217,1767747041703,-3510.39,0.00013698,2]
[400617219,1767747041712,-3510.39,0.00013698,2]
[400617221,1767747041721,-3510.39,0.00013698,2]
[400617223,1767747041730,-3510.39,0.00013698,2]
[400617225,1767747041739,-3510.39,0.00013698,2]
[400617227,1767747041748,-3510.46251885,0.00013698,2]
[400617229,1767747041757,-500.0,0.00013698,2]
[400617231,1767747041766,-500.0,0.00013698,2]
[400617233,1767747041775,-580.76,0.00013698,2]
[400617235,1767747041784,-577.08,0.00013698,2]
[400617237,1767747041793,-500.0,0.00013698,2]
[400617239,1767747041803,-500.0,0.00013698,2]
[400617241,1767747041812,-361.95914229,0.00013698,2]
[400617243,1767747041821,-466.89772029,0.00013698,2]
[400617245,1767747041831,-500.0,0.00013698,2]
[400617247,1767747041840,-500.0,0.00013698,2]
[400617249,1767747041849,-500.0,0.00013698,2]
[400617251,1767747041859,-500.0,0.00013698,2]
[400617253,1767747041867,-500.0,0.00013698,2]
[400617255,1767747041877,-500.0,0.00013698,2]
[400617256,1767747041885,-500.71714379,0.00013699,2]
[400617257,1767747041894,-500.0,0.00013699,2]
[400617259,1767747041903,-500.0,0.00013699,2]
[400617261,1767747041912,-500.0,0.00013699,2]
[400617262,1767747041921,-500.0,0.00013699,2]
[400617264,1767747041934,-500.0,0.00013699,2]
[400617265,1767747041943,-500.0,0.00013699,2]
[400617267,1767747041951,-500.0,0.00013699,2]
[400617268,1767747041961,-500.0,0.00013699,2]
[400617270,1767747041971,-500.0,0.00013699,2]
[400617271,1767747041979,-500.0,0.00013699,2]
[400617273,1767747041988,-500.0,0.00013699,2]
[400617274,1767747041997,-500.0,0.00013699,2]
[400617276,1767747042006,-500.0,0.00013699,2]
[400617277,1767747042015,-500.0,0.00013699,2]
[400617279,1767747042025,-500.0,0.00013699,2]
[400617280,1767747042034,-500.0,0.00013699,2]
[400617282,1767747042043,-500.0,0.00013699,2]
[400617283,1767747042052,-500.0,0.00013699,2]
[400617285,1767747042062,-500.0,0.00013699,2]
[400617286,1767747042071,-500.0,0.00013699,2]
[400617288,1767747042080,-500.0,0.00013699,2]
[400617289,1767747042089,-500.2666594,0.00013699,2]
[400617291,1767747042099,-500.93963039,0.00013699,2]
[400617293,1767747042111,-254.27500282,0.00013699,2]
[400617294,1767747042120,-500.0,0.00013699,2]
[400617296,1767747042129,-500.0,0.00013699,2]
[400617297,1767747042137,-500.0,0.00013699,2]
[400617299,1767747042150,-500.0,0.00013699,2]
[400617301,1767747042159,-343.49392703,0.00013699,2]
[400617302,1767747042168,-500.0,0.00013699,2]
[400617304,1767747042178,-500.0,0.00013699,2]
[400617306,1767747042187,-500.7233053,0.00013699,2]
[400617307,1767747042196,-500.17698717,0.00013699,2]
[400617309,1767747042206,-500.0,0.00013699,2]
[400617310,1767747042215,-634.09365022,0.00013699,2]
[400617312,1767747042224,-500.0,0.00013699,2]
[400617313,1767747042234,-500.0,0.00013699,2]
[400617315,1767747042243,-540.98419624,0.00013699,2]
[400617316,1767747042251,-500.0,0.00013699,2]
[400617318,1767747042260,-500.0,0.00013699,2]
[400617320,1767747042269,-504.37236451,0.00013699,2]
[400617321,1767747042278,-500.0,0.00013699,2]
[400617323,1767747042287,-500.0,0.00013699,2]
[400617324,1767747042295,-500.0,0.00013699,2]
[400617326,1767747042306,-500.0,0.00013699,2]
[400617328,1767747042315,-501.00450759,0.00013699,2]
[400617329,1767747042324,-526.06901587,0.00013699,2]
[400617331,1767747042334,-351.22077635,0.00013699,2]
[400617333,1767747042343,-7578.0,0.00013709,2]
[400617334,1767747042352,-558.00072349,0.00013713,2]
[400617336,1767747042361,-235.0,0.00013791,2]
[400617337,1767747042370,-420.0,0.00013791,2]
[400617339,1767747042379,-361.95620737,0.00013821,2]
[400617341,1767747042388,-1000.0,0.00013821,2]
[400617342,1767747042397,-1000.0,0.00013821,2]
[400617344,1767747042406,-1000.0,0.00013821,2]
[400617345,1767747042415,-1103.20077108,0.00013821,2]
[400617347,1767747042424,-1000.0,0.00013821,2]
[400617349,1767747042433,-382.63199019,0.00013821,2]
[400617350,1767747042442,-500.0,0.00013821,2]
[400617352,1767747042451,-1000.0,0.00013821,2]
[400617353,1767747042460,-275.69590667,0.00013821,2]
[400617355,1767747042470,-325.41046697,0.00013821,2]
[400617357,1767747042479,-1000.0,0.00013821,2]
[400617358,1767747042488,-1000.0,0.00013821,2]
[400617360,1767747042497,-1000.0,0.00013821,2]
[400617361,1767747042506,-1000.0,0.00013821,2]
[400617363,1767747042517,-1000.0,0.00013821,2]
[400617365,1767747042526,-1002.25371869,0.00013821,2]
[400617366,1767747042536,-1000.0,0.00013821,2]
[400617368,1767747042546,-406.18034584,0.00013821,2]
[400617370,1767747042556,-7578.0,0.00013846,2]
[400617371,1767747042565,-15000.0,0.0001386,2]
[400617373,1767747042577,-163.60914411,0.00013973,2]
[400617375,1767747042585,-7578.0,0.00013983,2]
[400617376,1767747042594,-720.0,0.00014107,2]
[400617378,1767747042604,-7578.0,0.0001412,2]
[400617379,1767747042613,-600.0,0.00014221,2]
[400617381,1767747042623,-1000.0,0.00014247,2]
[400617383,1767747042632,-1000.0,0.00014247,2]
[400617385,1767747042643,-602.91356518,0.00014247,2]
[400617386,1767747042657,-501.56829016,0.00014247,2]
[400617388,1767747042673,-504.33287174,0.00014247,2]
[400617390,1767747042682,-520.45931442,0.00014247,2]
[400617391,1767747042691,-496.29615777,0.00014247,2]
[400617393,1767747042699,-500.0,0.00014247,2]
[400617394,1767747042708,-1000.0,0.00014247,2]
[400617396,1767747042718,-500.84600982,0.00014247,2]
[400617398,1767747042727,-500.61401424,0.00014247,2]
[400617399,1767747042736,-500.0,0.00014247,2]
[400617401,1767747042745,-580.83767681,0.00014247,2]
[400617402,1767747042754,-501.17135178,0.00014247,2]
[400617404,1767747042763,-1000.0,0.00014247,2]
[400617406,1767747042772,-500.84667986,0.00014247,2]
[400617407,1767747042780,-500.0,0.00014247,2]
[400617409,1767747042789,-500.0,0.00014247,2]
[400617410,1767747042799,-1000.0,0.00014247,2]
[400617412,1767747042808,-1000.0,0.00014247,2]
[400617414,1767747042817,-500.0,0.00014247,2]
[400617415,1767747042826,-1000.0,0.00014247,2]
[400617417,1767747042835,-7578.0,0.00014257,2]
[400617418,1767747042845,-424.32,0.00014337,2]
[400617420,1767747042854,-1500.0,0.00014368,2]
[400617422,1767747042863,-1500.0,0.00014368,2]
[400617423,1767747042873,-899.54515289,0.00014368,2]
[400617425,1767747042882,-1098.44792801,0.00014368,2]
[400617427,1767747042891,-698.64498703,0.00014368,2]
[400617428,1767747042900,-1000.0,0.00014368,2]
[400617430,1767747042909,-1500.0,0.00014368,2]
[400617431,1767747042918,-500.0,0.00014368,2]
[400617433,1767747042927,-1500.0,0.00014368,2]
[400617435,1767747042936,-1000.0,0.00014368,2]
[400617436,1767747042946,-1500.0,0.00014368,2]
[400617438,1767747042955,-7578.0,0.00014394,2]
[400617440,1767747042964,-7578.0,0.00014531,2]
[400617441,1767747042974,-191.62186651,0.00014572,2]
[400617443,1767747042983,-7578.0,0.00014668,2]
[400617444,1767747042991,-727.40712175,0.00014768,2]
[400617446,1767747043001,-1500.0,0.00014795,2]
[400617448,1767747043010,-1500.0,0.00014795,2]
[400617450,1767747043019,-1500.0,0.00014795,2]
[400617453,1767747043028,-1500.0,0.00014795,2]
[400617456,1767747043037,-533.7772006,0.00014795,2]
[400617458,1767747043046,-7578.0,0.00014805,2]
[400617461,1767747043056,-851.78723781,0.00014882,2]
[400617462,1767747043065,-500.0,0.00014889,2]
[400617464,1767747043075,-500.0,0.00014889,2]
[400617466,1767747043084,-500.0,0.00014889,2]
[400617467,1767747043093,-500.0,0.00014889,2]
[400617470,1767747043106,-500.0,0.00014889,2]
[400617471,1767747043115,-500.0,0.00014889,2]
[400617473,1767747043124,-500.0,0.00014889,2]
[400617475,1767747043133,-500.0,0.00014889,2]
[400617476,1767747043143,-500.0,0.00014889,2]
[400617478,1767747043153,-500.0,0.00014889,2]
[400617479,1767747043162,-500.0,0.00014889,2]
[400617481,1767747043171,-500.0,0.00014889,2]
[400617483,1767747043180,-500.0,0.00014889,2]
[400617484,1767747043189,-500.0,0.00014889,2]
[400617486,1767747043198,-500.0,0.00014889,2]
[400617488,1767747043208,-500.0,0.00014889,2]
[400617489,1767747043218,-511.14869574,0.00014889,2]
[400617491,1767747043227,-500.0,0.00014916,2]
[400617493,1767747043235,-2000.0,0.00014916,2]
[400617494,1767747043245,-2000.0,0.00014916,2]
[400617496,1767747043254,-2000.0,0.00014916,2]
[400617498,1767747043263,-7578.0,0.00014942,2]
[400617499,1767747043272,-1000.0,0.00015,2]
[400617501,1767747043281,-7578.0,0.00015079,2]
[400617503,1767747043290,-587.0,0.00015131,2]
[400617504,1767747043300,-7578.0,0.00015216,2]
[400617506,1767747043309,-2000.0,0.00015342,2]
[400617507,1767747043318,-2000.0,0.00015342,2]
[400617509,1767747043327,-2000.0,0.00015342,2]
[400617511,1767747043336,-2000.0,0.00015342,2]
[400617512,1767747043345,-7578.0,0.00015353,2]
[400617514,1767747043354,-2500.0,0.00015464,2]
[400617516,1767747043363,-541.38457236,0.00015464,2]
[400617517,1767747043372,-2500.0,0.00015464,2]
[400617519,1767747043381,-7578.0,0.0001549,2]
[400617520,1767747043391,-864.0,0.00015518,2]
[400617522,1767747043400,-7578.0,0.00015627,2]
[400617524,1767747043408,-7578.0,0.00015764,2]
[400617525,1767747043418,-2500.0,0.0001589,2]
[400617527,1767747043428,-2500.0,0.0001589,2]
[400617529,1767747043438,-2500.0,0.0001589,2]
[400617530,1767747043447,-2500.0,0.0001589,2]
[400617532,1767747043455,-7578.0,0.00015901,2]
[400617533,1767747043464,-15000.0,0.00015939,2]
[400617535,1767747043473,-3000.0,0.00016012,2]
[400617537,1767747043483,-3000.0,0.00016012,2]
[400617538,1767747043491,-8773.09793167,0.00016023,2]
[400617540,1767747043500,-4999.91828317,0.00016029,2]
[400617542,1767747043510,-7601.44807479,0.00016038,2]
[400617543,1767747043519,-689.11026278,0.00016359,2]
[400617545,1767747043527,-3000.0,0.00016438,2]
[400617547,1767747043539,-3000.0,0.00016438,2]
[400617548,1767747043548,-3000.0,0.00016438,2]
[400617550,1767747043558,-3000.0,0.00016438,2]
[400617551,1767747043566,-200.0,0.00016473,2]
[400617553,1767747043575,-3500.0,0.0001656,2]
[400617555,1767747043585,-3500.0,0.0001656,2]
[400617556,1767747043594,-220.85232073,0.00016572,2]
[400617558,1767747043603,-823.0,0.000166,2]
[400617560,1767747043612,-150.5,0.000169,2]
[400617561,1767747043620,-150.5,0.000169,2]
[400617563,1767747043630,-2692.18736728,0.00016986,2]
[400617565,1767747043639,-3500.0,0.00016986,2]
[400617566,1767747043648,-3500.0,0.00016986,2]
[400617568,1767747043658,-3500.0,0.00016986,2]
[400617569,1767747043667,-1000.0,0.00017069,2]
[400617571,1767747043676,-4000.0,0.00017108,2]
[400617573,1767747043685,-4000.0,0.00017108,2]
[400617574,1767747043694,-1041.66666667,0.00017383,2]
[400617575,1767747043704,-1006.10461326,0.00017534,2]
[400617576,1767747043713,-4000.0,0.00017534,2]
[400617577,1767747043723,-4000.0,0.00017534,2]
[400617579,1767747043732,-2507.63173447,0.00017656,2]
[400617580,1767747043741,-4500.0,0.00017656,2]
[400617581,1767747043750,-4298.06700811,0.00018082,2]
[400617582,1767747043760,-4018.29274891,0.00018082,2]
[400617583,1767747043769,-2887.16845353,0.00018204,2]
[400617584,1767747043778,-1152.0,0.00018213,2]
[400617585,1767747043787,-250.08277494,0.00018572,2]
[400617586,1767747043796,-239.0,0.00018685,3]
[400617587,1767747043807,-1000.0,0.00018776,2]
[400617588,1767747043816,-244.0,0.00018776,2]
[400617589,1767747043825,-4999.91828317,0.00018957,2]
[400617590,1767747043834,-900.0,0.00019178,2]
[400617591,1767747043843,-18704.7,0.000192,2]
[400617592,1767747043852,-167.75,0.000192,2]
[400617593,1767747043862,-240.34,0.000192,2]
[400617594,1767747043873,-2089.8,0.000192,2]
[400617595,1767747043883,-195.72,0.000192,2]
[400617596,1767747043895,-418.0,0.00019282,2]
[400617597,1767747043914,-8773.09793167,0.00019575,2]
[400617598,1767747043926,-648.93473211,0.00019726,2]
[400617599,1767747043935,-1550.0,0.00019982,2]
[400617600,1767747043944,-1200.0,0.0002,2]
[400617601,1767747043953,-210.16908342,0.0002,2]
[400617602,1767747043962,-181.04000005,0.0002,2]
[400617603,1767747043971,-279.31322915,0.00020572,2]
[400617605,1767747043980,-1000.0,0.00020654,2]
[400617606,1767747043989,-492.0,0.00020654,2]
[400617607,1767747043999,-2756.44105111,0.00020654,2]
[400617608,1767747044008,-418.0,0.00020934,2]
[400617610,1767747044017,-190.0,0.00021425,4]
[400617611,1767747044026,-4999.91828317,0.00021886,2]
[400617613,1767747044035,-157.17127242,0.00022259,5]
[400617615,1767747044045,-300.0,0.00022466,2]
[400617617,1767747044054,-195.05,0.00022471,2]
[400617619,1767747044068,-308.54368337,0.00022572,2]
[400617621,1767747044078,-418.0,0.00022586,2]
[400617623,1767747044086,-341.52,0.000226,2]
[400617625,1767747044095,-2362.32,0.000226,7]
[400617627,1767747044108,-1000.0,0.00022719,10]
[400617629,1767747044118,-791.0,0.00022719,10]
[400617631,1767747044126,-376.8200359,0.00022877,2]
[400617633,1767747044136,-157.17127242,0.00022947,5]
[400617635,1767747044145,-450.0,0.00023014,2]
[400617637,1767747044157,-8773.09793167,0.00023127,2]
[400617639,1767747044166,-600.6566519,0.00023151,2]
[400617641,1767747044175,-240.34,0.000232,7]
[400617643,1767747044185,-2089.8,0.000232,14]
[400617645,1767747044195,-195.72,0.000232,7]
[400617647,1767747044203,-500.0,0.00023395,2]
[400617649,1767747044213,-2300.0,0.00023477,2]
[400617651,1767747044222,-500.0,0.00023525,2]
[400617653,1767747044232,-500.0,0.00023558,2]
[400617655,1767747044241,-2300.0,0.00023559,2]
[400617657,1767747044250,-600.0,0.00023562,2]
[400617658,1767747044260,-500.0,0.00023716,2]
[400617660,1767747044269,-18704.7,0.000238,2]
[400617662,1767747044278,-500.0,0.0002397,2]
[400617664,1767747044289,-1025.73276343,0.00024,2]
[400617666,1767747044298,-2300.0,0.0002402,2]
[400617668,1767747044307,-500.0,0.00024059,2]
[400617670,1767747044316,-2300.0,0.00024072,2]
[400617672,1767747044325,-750.0,0.0002411,2]
[400617674,1767747044335,-156.0,0.00024164,12]
[400617676,1767747044345,-418.0,0.00024239,2]
[400617678,1767747044355,-2300.0,0.00024532,2]
[400617680,1767747044366,-2300.0,0.0002456,2]
[400617682,1767747044376,-2300.0,0.00024567,2]
[400617684,1767747044385,-337.77413758,0.00024572,2]
[400617686,1767747044395,-900.0,0.00024658,2]
[400617688,1767747044404,-500.0,0.00024658,2]
[400617690,1767747044414,-2362.32,0.000247,7]
[400617692,1767747044424,-286.0,0.00024731,2]
[400617694,1767747044434,-500.0,0.00024759,2]
[400617696,1767747044443,-500.0,0.00024795,2]
[400617698,1767747044453,-415556.43095,0.000248,2]
[400617701,1767747044464,-4999.91828317,0.00024814,2]
[400617702,1767747044473,-2300.0,0.0002483,2]
[400617704,1767747044483,-286.0,0.00024871,2]
[400617718,1767747044603,-631081.21536,0.000249,2]
[400617720,1767747044614,-286.0,0.00024917,2]
[400617722,1767747044624,-500.0,0.00024932,2]
[400617724,1767747044633,-6201.99236501,0.00024949,2]
[400617726,1767747044642,-1000.0,0.00024991,10]
[400617728,1767747044652,-1000.0,0.00024991,10]
[400617730,1767747044661,-240.34,0.00025,7]
[400617732,1767747044670,-2089.8,0.00025,14]
[400617734,1767747044679,-195.72,0.00025,7]
[400617736,1767747044689,-1018.0,0.00025,2]
[400617738,1767747044698,-500.0,0.00025069,2]
[400617740,1767747044707,-250.0,0.00025205,2]
[400617742,1767747044716,-880.39814706,0.00025205,2]
[400617744,1767747044725,-500.0,0.00025206,2]
[400617746,1767747044735,-5074.1965642,0.00025237,2]
[400617748,1767747044745,-286.0,0.00025279,2]
[400617750,1767747044755,-1240.47751497,0.00025309,2]
[400617752,1767747044765,-286.0,0.00025316,2]
[400617754,1767747044775,-500.0,0.00025343,2]
[400617756,1767747044785,-715.15875957,0.00025354,2]
[400617758,1767747044795,-2860.63503829,0.00025354,2]
[400617760,1767747044804,-6436.42883614,0.00025354,2]
[400617762,1767747044814,-1112.53695313,0.00025354,2]
[400617764,1767747044823,-4450.14781251,0.00025354,2]
[400617766,1767747044832,-2300.0,0.0002537,7]
[400617768,1767747044841,-341.52,0.000254,2]
[400617770,1767747044850,-1840.0,0.00025403,7]
[400617772,1767747044859,-500.0,0.0002548,2]
[400617774,1767747044870,-286.0,0.00025486,7]
[400617776,1767747044879,-286.0,0.00025534,7]
[400617778,1767747044888,-1841.0,0.00025534,7]
[400617780,1767747044898,-1240.47751498,0.00025599,2]
[400617782,1767747044907,-18704.7,0.000256,2]
[400617784,1767747044917,-1041.66666667,0.000256,7]
[400617786,1767747044926,-500.0,0.00025607,7]
[400617788,1767747044934,-500.0,0.00025617,2]
[400617790,1767747044943,-2300.0,0.00025632,7]
[400617792,1767747044953,-286.0,0.00025708,2]
[400617794,1767747044963,-350.0,0.00025753,2]
[400617796,1767747044972,-500.0,0.00025754,2]
[400617797,1767747044981,-286.0,0.00025789,2]
[400617800,1767747044998,-504.0,0.00025891,2]
[400617802,1767747045018,-418.0,0.00025891,2]
[400617803,1767747045034,-500.0,0.00025986,7]
[400617806,1767747045044,-15315.78402317,0.00026,30]
[400617808,1767747045055,-17467.00445744,0.00026,2]
[400617810,1767747045064,-161.0,0.00026,5]
[400617812,1767747045074,-2362.32,0.00026,7]
[400617814,1767747045083,-1041.66666667,0.00026,30]
[400617816,1767747045093,-1018.0,0.00026,2]
[400617818,1767747045105,-150.5,0.00026,7]
[400617820,1767747045114,-286.0,0.0002601,2]
[400617822,1767747045123,-659.0,0.00026018,2]
[400617824,1767747045133,-286.0,0.00026093,2]
[400617826,1767747045143,-2874.83428113,0.000261,7]
[400617828,1767747045152,-2300.0,0.00026102,7]
[400617830,1767747045162,-500.0,0.00026106,7]
[400617832,1767747045171,-1032.0,0.00026107,7]
[400617834,1767747045182,-194.54818009,0.0002616,2]
[400617836,1767747045191,-1032.0,0.00026263,2]
[400617838,1767747045200,-659.0,0.00026288,2]
[400617840,1767747045210,-450.0,0.00026301,2]
[400617842,1767747045219,-151.0,0.00026302,7]
[400617844,1767747045229,-151.0,0.00026302,7]
[400617846,1767747045238,-151.0,0.00026302,7]
[400617848,1767747045248,-262.890712,0.00026302,7]
[400617850,1767747045257,-151.0,0.00026302,7]
[400617852,1767747045267,-151.0,0.00026302,7]
[400617854,1767747045277,-151.0,0.00026302,7]
[400617856,1767747045287,-158.624878,0.00026302,7]
[400617858,1767747045296,-1840.0,0.0002633,2]
[400617860,1767747045307,-1840.0,0.00026343,2]
[400617862,1767747045316,-174.0,0.00026356,20]
[400617864,1767747045325,-659.0,0.00026376,2]
[400617866,1767747045334,-151.0,0.00026439,7]
[400617868,1767747045343,-256.917806,0.00026439,7]
[400617870,1767747045354,-151.0,0.00026439,7]
[400617872,1767747045364,-151.0,0.00026439,7]
[400617874,1767747045373,-151.0,0.00026439,7]
[400617876,1767747045382,-151.0,0.00026439,7]
[400617878,1767747045393,-200.0,0.0002654,14]
[400617880,1767747045403,-367.0045918,0.00026572,2]
[400617882,1767747045412,-286.0,0.00026585,2]
[400617884,1767747045422,-240.34,0.000266,7]
[400617886,1767747045432,-195.72,0.000266,7]
[400617888,1767747045441,-2089.8,0.000266,14]
[400617890,1767747045451,-500.0,0.00026617,7]
[400617892,1767747045460,-8773.09793167,0.00026678,2]
[400617894,1767747045469,-1840.0,0.00026686,2]
[400617896,1767747045480,-53813.93792126,0.00026778,14]
[400617898,1767747045490,-151.0,0.00026778,7]
[400617900,1767747045500,-151.0,0.00026778,7]
[400617902,1767747045509,-151.0,0.00026778,7]
[400617904,1767747045518,-151.0,0.00026778,7]
[400617906,1767747045527,-151.0,0.00026778,7]
[400617908,1767747045537,-151.0,0.00026778,7]
[400617910,1767747045546,-235.440161,0.00026778,7]
[400617912,1767747045557,-182.954816,0.00026778,7]
[400617914,1767747045566,-151.0,0.00026778,7]
[400617916,1767747045575,-151.0,0.00026778,7]
[400617918,1767747045584,-349.869649,0.00026778,7]
[400617920,1767747045593,-349.869649,0.00026778,7]
[400617922,1767747045602,-151.0,0.00026778,7]
[400617924,1767747045611,-349.869649,0.00026778,7]
[400617926,1767747045620,-349.869649,0.00026778,7]
[400617928,1767747045630,-550.0,0.00026849,2]
[400617930,1767747045638,-500.0,0.00026877,7]
[400617932,1767747045647,-2300.0,0.00026921,7]
[400617934,1767747045657,-3466.43646359,0.00026931,2]
[400617936,1767747045666,-286.0,0.00026944,2]
[400617938,1767747045676,-184.0,0.00027,7]
[400617940,1767747045685,-600.0,0.00027,14]
[400617942,1767747045694,-503.72461752,0.00027,2]
[400617944,1767747045704,-302781.61424461,0.00027,7]
[400617946,1767747045713,-341.52,0.00027,2]
[400617948,1767747045723,-1041.66666667,0.00027,7]
[400617950,1767747045734,-1018.0,0.00027,2]
[400617952,1767747045743,-2300.0,0.00027049,7]
[400617954,1767747045752,-500.0,0.00027082,7]
[400617956,1767747045762,-2300.0,0.00027112,7]
[400617959,1767747045771,-2300.0,0.00027114,7]
[400617961,1767747045780,-18704.7,0.000272,2]
[400617962,1767747045789,-2362.32,0.000272,7]
[400617965,1767747045800,-286.0,0.00027226,7]
[400617967,1767747045811,-2000.0,0.00027267,7]
[400617969,1767747045821,-323.0,0.00027275,2]
[400617971,1767747045830,-195.05,0.00027308,2]
[400617973,1767747045840,-223.81332617,0.00027397,2]
[400617975,1767747045848,-1603.97,0.00027397,2]
[400617977,1767747045858,-156.66932831,0.00027397,2]
[400617979,1767747045867,-650.0,0.00027397,5]
[400617981,1767747045876,-151.0,0.00027397,7]
[400617983,1767747045886,-273.427612,0.00027397,7]
[400617985,1767747045895,-500.0,0.00027397,5]
[400617987,1767747045904,-514.72943371,0.00027397,5]
[400617989,1767747045913,-1000.0,0.0002749,30]
[400617991,1767747045922,-1000.0,0.0002749,30]
[400617993,1767747045931,-579.0,0.0002749,30]
[400617995,1767747045940,-45930.20768051,0.000275,2]
[400617997,1767747045950,-418.0,0.00027543,2]
[400617999,1767747045959,-1841.0,0.0002762,2]
[400618001,1767747045970,-1000.0,0.00027777,5]
[400618003,1767747045980,-1041.66666667,0.000278,7]
[400618005,1767747045990,-2300.0,0.00027874,7]
[400618007,1767747045999,-2000.0,0.00027904,7]
[400618009,1767747046009,-500.0,0.00027929,7]
[400618011,1767747046018,-1000.0,0.00027945,5]
[400618013,1767747046027,-750.0,0.00027945,5]
[400618015,1767747046036,-250.0,0.00027945,5]
[400618017,1767747046045,-250.0,0.00027945,5]
[400618019,1767747046055,-15316.1684334,0.00028,2]
[400618021,1767747046064,-519.93395126,0.00028,2]
[400618023,1767747046073,-1018.0,0.00028,2]
[400618026,1767747046082,-2300.0,0.00028029,7]
[400618029,1767747046092,-2300.0,0.00028053,7]
[400618031,1767747046103,-2300.0,0.00028309,7]
[400618033,1767747046116,-240.34,0.000284,7]
[400618035,1767747046125,-195.72,0.000284,7]
[400618037,1767747046134,-2089.8,0.000284,14]
[400618039,1767747046143,-2300.0,0.00028432,7]
[400618041,1767747046155,-1132.2062919,0.00028445,2]
[400618043,1767747046164,-2300.0,0.00028471,7]
[400618045,1767747046175,-850.0,0.00028493,5]
[400618047,1767747046184,-1344.52633851,0.00028493,5]
[400618049,1767747046193,-350.0,0.00028493,5]
[400618051,1767747046202,-350.0,0.00028493,5]
[400618053,1767747046211,-126244.76615567,0.000285,7]
[400618055,1767747046221,-151.0,0.000285,7]
[400618057,1767747046229,-151.0,0.000285,7]
[400618059,1767747046240,-151.0,0.000285,7]
[400618062,1767747046249,-151.0,0.000285,7]
[400618064,1767747046258,-250.0,0.000285,7]
[400618065,1767747046267,-250.0,0.000285,7]
[400618067,1767747046276,-250.0,0.000285,7]
[400618069,1767747046285,-250.0,0.000285,7]
[400618071,1767747046295,-250.0,0.000285,7]
[400618074,1767747046304,-250.0,0.000285,7]
[400618076,1767747046314,-206.8,0.000285,7]
[400618078,1767747046324,-2000.0,0.00028541,7]
[400618080,1767747046333,-158.0,0.00028548,29]
[400618082,1767747046343,-396.23504601,0.00028572,2]
[400618084,1767747046353,-341.52,0.000286,2]
[400618086,1767747046362,-2362.32,0.000286,7]
[400618088,1767747046371,-2300.0,0.00028652,7]
[400618089,1767747046382,-500.0,0.00028731,7]
[400618091,1767747046391,-26867.53519307,0.0002876,2]
[400618093,1767747046401,-28358.47353222,0.0002876,20]
[400618095,1767747046411,-4000.0,0.0002876,5]
[400618097,1767747046420,-19132.26998272,0.0002876,2]
[400618100,1767747046430,-191.004961,0.0002876,7]
[400618102,1767747046440,-151.0,0.0002876,7]
[400618104,1767747046450,-151.0,0.0002876,7]
[400618106,1767747046460,-151.0,0.0002876,7]
[400618108,1767747046469,-151.0,0.0002876,7]
[400618110,1767747046478,-151.0,0.0002876,7]
[400618112,1767747046487,-164.05427,0.0002876,7]
[400618114,1767747046496,-245.598663,0.0002876,7]